bitfinex-derivatives/quotes_ETHF0:USTF0_20250308
["timestamp","ask_amount","ask_price","bid_price","bid_amount"]
[1741401496992,19.136,2135.3,2134.8,0.93709]
[1741401496993,2.198,2135.1,2134.8,0.93709]
[1741401497271,3.13499,2135.1,2134.7,4.14493]
[1741401497668,2.198,2135.1,2134.9,0.93705]
[1741401497868,2.198,2135.1,2134.8,0.93709]
[1741401498367,2.198,2135.1,2134.9,0.93706]
[1741401498966,2.198,2135.1,2135.0,0.93703]
[1741401499269,0.93713,2134.8,2134.6,0.6199]
[1741401499469,0.93716,2134.7,2134.5,1.2943]
[1741401499669,5.4048,2134.7,2134.2,0.6714]
[1741401499865,0.6148,2134.6,2134.2,0.6714]
[1741401500166,0.93729,2134.4,2134.2,0.6714]
[1741401500378,0.93725,2134.5,2134.2,1.60877]
[1741401500674,2.197,2134.7,2134.5,0.93724]
[1741401500971,2.197,2134.7,2134.6,0.9372]
[1741401501175,2.197,2134.7,2134.5,0.93722]
[1741401501368,2.197,2134.7,2134.2,3.8792]
[1741401501569,2.197,2134.7,2134.6,0.9372]
[1741401501976,0.6307,2135.3,2135.1,0.93698]
[1741401502167,2.197,2135.2,2134.7,0.6492]
[1741401502467,3.13396,2135.2,2135.0,0.00702922]
[1741401502661,2.197,2135.2,2135.0,0.00702922]
[1741401503071,0.93678,2135.6,2135.3,0.93688]
[1741401503271,2.197,2135.5,2135.3,0.93688]
[1741401503567,0.93678,2135.6,2135.3,1.58608]
[1741401503766,2.197,2135.6,2135.3,0.6492]
[1741401504072,3.13379,2135.6,2135.3,1.58609]
[1741401504375,2.197,2135.6,2135.3,0.6492]
[1741401504769,2.197,2135.6,2135.5,0.93681]
[1741401504971,3.1337,2135.8,2135.5,0.93681]
[1741401505175,0.93672,2135.7,2135.4,0.93682]
[1741401505475,0.93674,2135.7,2135.4,0.93682]
[1741401505872,0.6259,2136.0,2135.3,0.6492]
[1741401506170,0.6259,2136.0,2135.8,0.93667]
[1741401506171,2.196,2135.9,2135.8,0.93667]
[1741401506378,0.93652,2136.2,2135.9,0.93663]
[1741401506689,0.93655,2136.1,2135.8,4.14446]
[1741401506875,2.196,2136.2,2135.8,3.2078]
[1741401507075,0.93658,2136.1,2135.8,3.2078]
[1741401507276,0.93669,2135.8,2135.5,4.14459]
[1741401507770,2.196,2135.8,2135.5,3.2078]
[1741401507974,0.93676,2135.6,2135.5,3.2078]
[1741401509772,0.93676,2135.6,2135.5,2.97410363]
[1741401510166,0.6349,2135.7,2135.1,3.856]
[1741401510376,0.93682,2135.5,2135.3,0.93689]
[1741401511375,0.6349,2135.7,2135.2,0.93692]
[1741401511879,3.8427,2135.7,2135.1,3.856]
[1741401512079,0.93694,2135.3,2135.1,3.856]
[1741401512274,0.93684,2135.5,2135.1,3.856]
[1741401512466,3.9144,2135.7,2135.1,3.856]
[1741401512671,0.93692,2135.3,2135.1,3.856]
[1741401512871,3.9144,2135.7,2135.1,3.856]
[1741401512872,0.93694,2135.2,2135.1,3.856]
[1741401513077,0.93694,2135.2,2135.1,3.2078]
[1741401513282,3.13286,2135.4,2135.2,0.93692]
[1741401513876,2.196,2135.4,2135.2,0.93692]
[1741401514077,0.93694,2135.2,2135.1,3.2078]
[1741401514378,2.196,2135.4,2135.1,3.2078]
[1741401514587,0.93694,2135.2,2135.1,3.2078]
[1741401515576,2.196,2135.4,2135.1,3.2078]
[1741401515775,3.13287,2135.4,2135.1,3.2078]
[1741401516087,2.196,2135.4,2135.1,3.2078]
[1741401516376,2.196,2135.4,2135.3,0.93689]
[1741401516777,9.1148,2136.0,2135.1,5.55021]
[1741401516976,9.1148,2136.0,2135.4,3.2078]
[1741401516977,3.75951,2136.0,2135.4,3.2078]
[1741401517178,2.8229,2136.0,2135.5,1.9736]
[1741401517379,2.196,2136.0,2135.8,0.93666]
[1741401517981,0.93648,2136.3,2136.0,0.93656]
[1741401518180,3.13152,2136.2,2135.7,3.2078]
[1741401518387,3.13152,2136.2,2136.0,0.93657]
[1741401518580,2.195,2136.2,2136.0,0.93657]
[1741401518783,2.195,2136.2,2136.1,0.93654]
[1741401518990,2.195,2136.2,2136.0,0.93656]
[1741401519286,2.195,2136.4,2136.3,0.93645]
[1741401519683,2.195,2136.4,2136.2,0.93647]
[1741401519887,3.13143,2136.4,2136.1,2.20914922]
[1741401520087,2.195,2136.4,2136.2,0.93648]
[1741401520389,2.195,2136.4,2136.1,1.27262922]
[1741401520583,3.13143,2136.4,2136.1,2.20915922]
[1741401520985,0.9365,2136.2,2136.1,1.27262922]
[1741401521292,0.9365,2136.2,2136.1,0.00702922]
[1741401521484,2.195,2136.4,2136.1,0.00702922]
[1741401522381,0.9365,2136.2,2136.1,0.00702922]
[1741401522690,2.195,2136.4,2136.1,0.00702922]
[1741401523685,3.13145,2136.4,2136.1,0.00702922]
[1741401523885,2.195,2136.4,2136.1,0.00702922]
[1741401524184,0.9365,2136.2,2136.1,0.00702922]
[1741401526588,0.93649,2136.3,2136.1,0.94355922]
[1741401526799,0.9365,2136.2,2136.1,0.00702922]
[1741401527289,3.18091979,2136.4,2136.1,0.00702922]
[1741401527492,0.93648,2136.3,2136.1,0.00702922]
[1741401527686,0.9365,2136.2,2136.1,0.00702922]
[1741401528982,2.195,2136.4,2136.1,0.00702922]
[1741401529188,2.195,2136.4,2136.1,0.94355922]
[1741401529392,0.93645,2136.4,2136.1,0.63602922]
[1741401529689,0.93646,2136.3,2136.2,0.6714]
[1741401531396,0.93643,2136.4,2136.2,1.60789]
[1741401532196,3.75729,2136.5,2136.3,0.93643]
[1741401532693,3.75727,2136.5,2136.3,0.93642]
[1741401532896,0.93642,2136.4,2136.2,0.6714]
[1741401533288,2.8209,2136.5,2136.2,0.6714]
[1741401533493,0.93646,2136.3,2136.2,0.6714]
[1741401536197,1.86482166,2136.4,2136.2,0.6714]
[1741401536397,0.93646,2136.3,2136.2,0.6714]
[1741401536701,0.93646,2136.3,2136.1,0.63602922]
[1741401536702,0.9365,2136.2,2136.1,0.00702922]
[1741401538404,2.80138846,2136.2,2136.1,0.00702922]
[1741401539801,6.80138846,2136.2,2136.1,0.00702922]
[1741401539996,0.93681,2135.5,2135.4,0.6253]
[1741401540899,0.93689,2135.3,2135.2,3.2078]
[1741401541206,0.93689,2135.3,2135.2,3.21482922]
[1741401541403,3.13089,2135.3,2135.2,3.21482922]
[1741401542107,3.13089,2135.3,2135.2,0.00702922]
[1741401543502,2.194,2135.3,2135.2,0.00702922]
[1741401543803,3.13089,2135.3,2135.2,0.00702922]
[1741401544198,2.194,2135.3,2135.2,0.94396922]
[1741401544608,2.194,2135.6,2135.5,0.93677]
[1741401545105,2.194,2135.6,2135.4,0.93682]
[1741401545412,0.93685,2135.4,2135.3,0.6213]
[1741401545594,2.194,2135.6,2135.3,0.6213]
[1741401546401,0.00702922,2135.7,2135.6,0.93676]
[1741401547198,0.00702922,2135.7,2135.5,0.6227]
[1741401547506,0.93681,2135.5,2135.4,0.6169]
[1741401547801,0.94376922,2135.7,2135.4,0.6169]
[1741401548106,0.93679,2135.6,2135.4,0.6369]
[1741401548403,0.93679,2135.6,2135.4,3.8447]
[1741401548606,0.00702922,2135.7,2135.5,0.93677]
[1741401549401,0.00702922,2135.7,2135.6,0.93676]
[1741401549802,0.94375922,2135.7,2135.5,0.93679]
[1741401550102,0.00702922,2135.7,2135.5,0.93679]
[1741401550303,0.00702922,2135.7,2135.4,3.8247]
[1741401550503,0.00702922,2135.7,2135.4,3.8747]
[1741401550812,0.00702922,2135.7,2135.6,0.93676]
[1741401551607,0.94375922,2135.7,2135.5,0.93679]
[1741401551810,0.93678,2135.6,2135.4,4.76153]
[1741401552407,0.00702922,2135.7,2135.4,3.8247]
[1741401552605,0.94375922,2135.7,2135.5,0.93678]
[1741401552910,0.00702922,2135.7,2135.4,3.8247]
[1741401553208,0.93681,2135.5,2135.4,3.8247]
[1741401553605,0.93681,2135.5,2135.4,3.2078]
[1741401554399,0.93681,2135.6,2135.4,3.2078]
[1741401554701,0.93681,2135.5,2135.4,3.2078]
[1741401555802,0.93681,2135.5,2135.3,1.55819]
[1741401556009,3.13083,2135.5,2135.3,1.55819]
[1741401556400,2.194,2135.5,2135.3,0.6213]
[1741401556606,3.13084,2135.5,2135.3,0.6213]
[1741401557310,3.13084,2135.5,2135.3,1.55819]
[1741401557510,3.13084,2135.5,2135.3,0.6213]
[1741401558007,2.194,2135.5,2135.3,0.6213]
[1741401558208,0.93685,2135.4,2135.3,0.6213]
[1741401559009,3.13083,2135.5,2135.3,1.55819]
[1741401559309,3.13083,2135.5,2135.3,0.6213]
[1741401559507,2.194,2135.5,2135.3,1.55815]
[1741401559811,0.93685,2135.4,2135.3,3.8291]
[1741401560013,3.13083,2135.5,2135.3,3.8291]
[1741401560205,2.194,2135.5,2135.3,0.6213]
[1741401561108,3.13081,2135.5,2135.3,1.55817]
[1741401561711,2.194,2135.5,2135.3,1.55817]
[1741401561909,0.93685,2135.4,2135.3,0.6213]
[1741401562316,2.194,2135.5,2135.3,0.6213]
[1741401562610,2.194,2135.5,2135.4,0.93685]
[1741401563409,2.194,2135.5,2135.3,0.6213]
[1741401563410,0.00702922,2135.7,2135.6,0.93676]
[1741401565517,0.93666,2135.9,2135.8,0.93666]
[1741401565518,2.194,2135.9,2135.8,0.93666]
[1741401566112,0.626,2136.3,2135.6,3.2078]
[1741401566411,6.2623,2136.5,2135.7,0.6691]
[1741401566412,2.194,2136.2,2135.7,0.6691]
[1741401566619,2.194,2136.2,2135.7,1.6558]
[1741401566812,2.194,2136.2,2135.8,0.93667]
[1741401567207,0.93661,2136.0,2135.8,0.93665]
[1741401567408,0.93657,2136.1,2135.8,0.93665]
[1741401567608,0.93655,2136.1,2135.7,0.6691]
[1741401567812,0.93655,2136.1,2135.8,0.93664]
[1741401568012,0.93649,2136.3,2135.7,0.6691]
[1741401568215,2.194,2136.2,2136.1,0.93654]
[1741401568814,5.4018,2136.5,2136.0,0.6478]
[1741401569011,6.33817,2136.5,2136.3,0.93644]
[1741401569315,5.4018,2136.5,2136.3,0.93644]
[1741401569514,0.93625,2136.8,2136.4,0.6064]
[1741401569720,2.193,2136.6,2136.4,0.6064]
[1741401569916,2.193,2136.6,2136.5,0.93637]
[1741401570115,2.193,2136.6,2136.5,1.58417]
[1741401570320,0.93626,2136.8,2136.5,1.58417]
[1741401570508,2.193,2136.7,2136.6,0.93629]
[1741401570715,2.193,2136.7,2136.6,0.93632]
[1741401571021,2.193,2136.7,2136.5,1.58414]
[1741401572116,2.193,2136.7,2136.5,4.79194]
[1741401572821,3.12928,2136.7,2136.5,4.79194]
[1741401573216,2.193,2136.7,2136.5,4.79194]
[1741401573521,3.12928,2136.7,2136.5,4.79194]
[1741401573720,6.1908,2136.6,2135.6,3.2078]
[1741401573921,0.93661,2136.0,2135.7,1.57491]
[1741401574120,0.93661,2136.0,2135.7,1.68491]
[1741401574427,0.93666,2135.9,2135.7,0.7482]
[1741401574613,2.193,2136.1,2135.7,0.7482]
[1741401574815,3.2078,2136.0,2135.3,4.14466]
[1741401575121,0.93667,2135.8,2135.7,0.00702922]
[1741401576117,1.9238125,2135.9,2135.7,0.00702922]
[1741401576322,0.93667,2135.8,2135.7,0.00702922]
[1741401578017,0.93666,2135.9,2135.7,0.00702922]
[1741401578421,2.193,2135.9,2135.7,0.94374922]
[1741401579120,2.193,2135.9,2135.7,0.00702922]
[1741401579522,0.93667,2135.8,2135.7,0.00702922]
[1741401579710,2.193,2135.9,2135.7,0.00702922]
[1741401579711,3.12966,2135.9,2135.7,0.00702922]
[1741401579917,2.193,2135.9,2135.7,0.00702922]
[1741401580117,0.93667,2135.8,2135.7,0.00702922]
[1741401581322,3.12964,2135.9,2135.7,0.00702922]
[1741401581620,2.193,2135.9,2135.7,0.00702922]
[1741401582025,2.193,2135.9,2135.7,0.62302922]
[1741401582324,3.12964,2135.9,2135.7,0.62302922]
[1741401582517,2.193,2135.9,2135.7,0.62302922]
[1741401582719,2.193,2135.9,2135.7,1.55972922]
[1741401582919,3.12963,2135.9,2135.7,1.55972922]
[1741401583119,3.2078,2136.0,2135.8,0.93667]
[1741401583319,5.4008,2136.0,2135.8,0.93667]
[1741401584019,2.193,2136.0,2135.8,0.93667]
[1741401584227,3.12961,2136.0,2135.8,0.93667]
[1741401584426,2.193,2136.0,2135.8,0.93667]
[1741401585723,0.94360922,2136.1,2135.8,0.93667]
[1741401585927,3.13660922,2136.1,2135.7,1.94002922]
[1741401586226,3.13660922,2136.1,2135.8,0.93665]
[1741401588330,3.13660922,2136.1,2135.9,0.93663]
[1741401590328,0.94360922,2136.1,2135.9,0.93663]
[1741401591033,0.94360922,2136.1,2135.8,0.93664]
[1741401591229,0.93659,2136.0,2135.8,0.93664]
[1741401592927,0.00702922,2136.1,2135.7,1.94002922]
[1741401593127,0.00702922,2136.1,2135.7,1.96002922]
[1741401593327,0.93659,2136.0,2135.8,0.93664]
[1741401593529,0.00702922,2136.1,2135.7,1.94002922]
[1741401593729,0.94360922,2136.1,2135.9,0.93661]
[1741401594231,0.93659,2136.0,2135.9,0.93663]
[1741401595538,0.94359922,2136.1,2135.9,0.93663]
[1741401595737,0.94359922,2136.1,2135.7,1.94002922]
[1741401595936,0.94359922,2136.1,2135.7,1.96002922]
[1741401596134,0.94359922,2136.1,2135.9,0.93661]
[1741401596337,0.93659,2136.0,2135.9,0.93661]
[1741401596633,0.00702922,2136.1,2135.9,0.93661]
[1741401596634,0.94359922,2136.1,2135.9,0.93661]
[1741401598239,0.00702922,2136.1,2136.0,0.93659]
[1741401599135,0.94356922,2136.1,2136.0,0.93659]
[1741401600433,0.94356922,2136.1,2135.9,0.93661]
[1741401600635,0.00702922,2136.1,2136.0,0.93659]
[1741401601639,0.00702922,2136.1,2135.9,3.2078]
[1741401601640,0.94358922,2136.1,2135.9,3.2078]
[1741401601836,0.00702922,2136.1,2136.0,0.93659]
[1741401602037,0.94356922,2136.1,2136.0,0.93659]
[1741401602342,0.00702922,2136.1,2136.0,0.93659]
[1741401604343,0.00702922,2136.1,2135.9,3.2078]
[1741401604344,0.00702922,2136.1,2135.9,4.1444]
[1741401604544,0.94358922,2136.1,2135.9,4.1444]
[1741401604742,0.00702922,2136.1,2136.0,0.93659]
[1741401607941,0.94360922,2136.1,2135.9,3.2078]
[1741401608147,0.94358922,2136.1,2135.9,4.14443]
[1741401608842,0.00702922,2136.1,2135.9,3.2078]
[1741401609043,0.00702922,2136.1,2136.0,0.93659]
[1741401609548,0.00702922,2136.1,2135.9,3.2078]
[1741401610045,0.94360922,2136.1,2135.9,4.14442]
[1741401610246,0.00702922,2136.1,2135.9,3.2078]
[1741401610444,0.00702922,2136.1,2136.0,0.93659]
[1741401611645,0.00702922,2136.1,2136.0,0.94659]
[1741401617649,1.92782461,2136.5,2136.3,0.93643]
[1741401617857,2.8177,2136.6,2136.5,0.93637]
[1741401618053,2.191,2136.6,2136.3,3.2078]
[1741401618357,2.191,2136.6,2136.5,0.93637]
[1741401618650,2.191,2136.6,2136.4,1.2777]
[1741401618847,2.191,2136.6,2136.5,0.6133]
[1741401619046,3.12728,2136.7,2136.5,1.54967]
[1741401619648,0.93628,2136.7,2136.5,0.6133]
[1741401620048,0.93628,2136.7,2136.5,1.54965]
[1741401620445,0.93628,2136.7,2136.5,0.6133]
[1741401620855,2.191,2136.8,2136.5,0.6133]
[1741401621052,4.14402,2136.9,2136.5,0.6133]
[1741401621244,4.14402,2136.9,2136.6,0.93629]
[1741401621457,2.191,2136.8,2136.5,0.6133]
[1741401621651,2.191,2136.8,2136.6,0.93632]
[1741401621852,2.191,2136.8,2136.7,0.93628]
[1741401622852,2.191,2136.8,2136.5,0.6133]
[1741401623053,2.191,2136.8,2136.6,0.93629]
[1741401623554,0.6685,2137.0,2136.5,0.6133]
[1741401623754,0.6685,2137.0,2136.9,0.93619]
[1741401623949,2.191,2137.1,2137.0,0.93613]
[1741401625957,2.191,2137.1,2136.9,5.1358]
[1741401626356,2.191,2137.1,2136.9,6.07197]
[1741401626552,2.191,2137.1,2137.0,0.93615]
[1741401626749,2.191,2137.1,2136.9,6.07197]
[1741401626950,2.191,2137.1,2136.9,5.1358]
[1741401627156,3.12712,2137.1,2136.9,5.1358]
[1741401627355,3.12712,2137.1,2136.9,6.07198]
[1741401627356,2.191,2137.1,2136.9,6.07198]
[1741401627752,2.191,2137.1,2136.9,5.1358]
[1741401627953,2.191,2137.1,2137.0,0.93615]
[1741401628260,0.93599,2137.4,2136.9,5.1358]
[1741401628550,0.93599,2137.4,2137.2,0.93606]
[1741401628551,2.19,2137.4,2137.2,0.93606]
[1741401628751,2.19,2137.4,2136.9,5.1458]
[1741401628752,3.817,2137.5,2136.9,5.1358]
[1741401629054,2.19,2137.4,2137.3,0.93599]
[1741401629458,2.19,2137.4,2137.3,0.93602]
[1741401629756,2.19,2137.4,2137.3,0.6273]
[1741401629757,3.12597,2137.4,2137.3,0.6273]
[1741401630152,2.19,2137.4,2137.3,0.6273]
[1741401632860,2.19,2137.4,2137.3,1.56332]
[1741401634151,2.19,2137.4,2137.3,0.6273]
[1741401634556,3.12597,2137.4,2137.3,0.6273]
[1741401634758,2.19,2137.4,2136.9,5.45817]
[1741401634957,0.93612,2137.1,2136.9,2.88837]
[1741401635157,0.9361,2137.2,2136.9,6.09617]
[1741401635456,3.12601,2137.4,2136.9,5.16]
[1741401635763,3.12601,2137.4,2137.2,0.93605]
[1741401636459,3.12601,2137.4,2137.1,0.93607]
[1741401636952,3.12601,2137.4,2137.2,0.93606]
[1741401637353,2.19,2137.4,2137.2,0.93606]
[1741401638154,2.19,2137.4,2137.3,0.93602]
[1741401638756,3.2078,2137.5,2136.9,5.16]
[1741401638961,3.12485,2137.7,2137.5,0.93592]
[1741401639161,0.669,2137.8,2137.5,0.93591]
[1741401639459,0.93585,2137.7,2137.5,0.93591]
[1741401639658,0.93585,2137.7,2137.3,0.6553]
[1741401639659,2.858,2137.8,2137.4,1.2938]
[1741401639854,2.858,2137.8,2137.7,0.93584]
[1741401640264,2.924,2138.2,2137.5,3.2078]
[1741401640466,3.79369,2138.1,2137.8,0.93577]
[1741401640668,0.93571,2138.0,2137.8,0.93577]
[1741401640855,2.858,2138.1,2137.8,0.93577]
[1741401641058,3.79368,2138.1,2137.8,0.93577]
[1741401641362,2.858,2138.1,2138.0,0.93571]
[1741401642061,2.858,2138.1,2137.9,1.54642]
[1741401643166,3.2078,2138.3,2137.9,0.6107]
[1741401643369,2.189,2138.2,2138.1,0.93565]
[1741401643661,2.189,2138.2,2138.0,0.93568]
[1741401643868,3.2078,2138.3,2138.2,0.93562]
[1741401644163,4.14323,2138.7,2138.2,3.2078]
[1741401644353,4.14323,2138.7,2138.4,0.93552]
[1741401644354,2.189,2138.6,2138.4,0.93552]
[1741401644664,3.2078,2138.7,2138.3,0.6251]
[1741401644863,4.14322,2138.7,2138.4,2.25181]
[1741401645158,4.14322,2138.7,2137.9,3.21482922]
[1741401645159,0.93552,2138.5,2137.9,3.21482922]
[1741401645359,3.2867,2138.7,2138.2,3.2078]
[1741401645559,4.14323,2138.7,2138.3,1.56065]
[1741401645768,0.93547,2138.6,2138.3,2.21415]
[1741401646160,0.9355,2138.5,2138.3,1.2786]
[1741401646364,0.93547,2138.6,2138.3,2.21418]
[1741401646569,0.93548,2138.6,2138.3,1.2786]
[1741401647070,0.93548,2138.6,2138.3,2.21418]
[1741401647366,3.2078,2138.7,2138.1,3.2078]
[1741401647665,0.93552,2138.5,2138.2,0.93561]
[1741401647870,0.93552,2138.5,2138.2,0.94561]
[1741401648464,0.93552,2138.5,2138.2,0.01]
[1741401648871,3.2078,2138.7,2138.2,0.01]
[1741401649067,0.9355,2138.5,2138.2,0.9456]
[1741401649468,3.12355,2138.4,2138.1,3.2078]
[1741401649664,3.825,2138.3,2137.9,0.00702922]
[1741401650974,0.93571,2138.0,2137.9,0.00702922]
[1741401651370,0.93569,2138.1,2137.9,0.00702922]
[1741401652165,2.188,2138.0,2137.9,0.00702922]
[1741401652572,3.12371,2138.0,2137.9,0.00702922]
[1741401656267,2.188,2138.0,2137.9,0.00702922]
[1741401656473,3.12371,2138.0,2137.9,0.00702922]
[1741401661872,0.6172,2138.3,2137.9,0.00702922]
[1741401662075,0.93569,2138.1,2137.9,0.00702922]
[1741401662270,0.6172,2138.3,2137.9,0.94276922]
[1741401662271,0.93566,2138.2,2137.9,0.94276922]
[1741401662873,0.93566,2138.2,2137.9,0.94274922]
[1741401663074,3.2078,2138.6,2137.9,0.01702922]
[1741401663375,3.12252,2138.5,2138.2,0.93562]
[1741401663573,3.8183,2138.6,2138.3,0.6368]
[1741401663779,2.187,2138.5,2138.3,1.57236]
[1741401664077,3.1225,2138.5,2138.3,0.6368]
[1741401664282,2.187,2138.5,2138.0,0.9357]
[1741401664485,2.187,2138.5,2137.9,0.94275922]
[1741401664682,3.2078,2138.3,2137.9,0.00702922]
[1741401664878,0.0792,2138.4,2137.9,0.00702922]
[1741401665080,0.93562,2138.3,2138.0,0.93569]
[1741401665676,0.0792,2138.4,2137.9,0.00702922]
[1741401665883,0.93564,2138.2,2137.9,0.94275922]
[1741401667792,0.93555,2138.4,2137.9,0.02702922]
[1741401667989,2.187,2138.5,2137.9,0.02702922]
[1741401668184,2.186,2138.5,2138.3,0.93555]
[1741401668379,2.186,2138.5,2138.4,0.93554]
[1741401668583,2.186,2138.5,2138.3,0.93554]
[1741401668984,3.1215,2138.5,2138.3,0.93554]
[1741401669190,2.186,2138.5,2138.1,0.93564]
[1741401669389,0.9356,2138.3,2138.0,4.14348]
[1741401669591,0.93567,2138.1,2138.0,3.2078]
[1741401670292,2.186,2138.1,2138.0,4.14351]
[1741401670996,3.18515089,2138.4,2138.3,0.93558]
[1741401671186,3.8183,2138.6,2138.3,0.93558]
[1741401671187,2.186,2138.5,2138.3,0.93558]
[1741401672287,2.186,2138.5,2138.4,0.6712]
[1741401673293,3.12149,2138.5,2138.4,0.6712]
[1741401674896,2.186,2138.5,2138.4,0.6712]
[1741401675091,3.12149,2138.5,2138.4,0.6712]
[1741401675291,2.186,2138.5,2138.4,0.6712]
[1741401675488,3.8183,2138.6,2138.5,0.93549]
[1741401675795,6.32926,2138.6,2138.4,0.6712]
[1741401676393,5.3938,2138.6,2138.5,0.93549]
[1741401677195,5.3938,2138.6,2138.4,1.9518]
[1741401677496,5.3938,2138.6,2138.5,0.93549]
[1741401677694,6.32927,2138.6,2138.4,1.9518]
[1741401677888,5.3938,2138.6,2138.4,1.9518]
[1741401678096,5.3938,2138.6,2138.5,0.93549]
[1741401679399,3.2078,2138.6,2138.5,0.93549]
[1741401679592,2.186,2138.7,2138.6,0.93544]
[1741401680196,3.2078,2139.1,2138.4,1.9518]
[1741401680498,2.186,2138.9,2138.4,4.32064]
[1741401681008,4.99727163,2139.0,2138.4,4.32064]
[1741401681196,0.93532,2138.9,2138.6,0.93541]
[1741401681396,0.93545,2138.6,2138.4,2.88732]
[1741401682501,1.58475,2138.6,2138.4,2.88732]
[1741401683697,1.58475,2138.6,2138.5,0.93549]
[1741401683698,0.6493,2138.6,2138.5,0.93549]
[1741401684899,2.185,2138.8,2138.4,1.9518]
[1741401685100,0.93544,2138.7,2138.5,0.93547]
[1741401685300,2.185,2138.8,2138.4,1.9518]
[1741401685602,3.12037,2138.8,2138.6,0.93543]
[1741401685798,2.185,2138.8,2138.7,0.9354]
[1741401686102,3.12038,2138.8,2138.4,1.9518]
[1741401686403,0.93544,2138.7,2138.4,2.88732]
[1741401686698,0.93545,2138.6,2138.4,2.88732]
[1741401686898,2.185,2138.8,2138.5,0.93546]
[1741401687099,0.93541,2138.7,2138.4,1.9518]
[1741401687297,0.93541,2138.7,2138.5,0.93549]
[1741401687499,2.185,2138.8,2138.5,0.93549]
[1741401687694,3.12039,2138.8,2138.5,0.93549]
[1741401687895,3.12039,2138.8,2138.6,0.93544]
[1741401688294,2.185,2138.8,2138.4,1.9518]
[1741401688502,0.93545,2138.6,2138.4,2.88732]
[1741401688695,0.93543,2138.7,2138.4,1.9518]
[1741401688900,0.93543,2138.7,2138.5,0.93549]
[1741401689897,2.185,2138.8,2138.4,1.9518]
[1741401690099,3.12038,2138.8,2138.6,0.93542]
[1741401690304,2.185,2138.8,2138.4,1.9518]
[1741401690507,5.3928,2138.8,2138.4,2.8873]
[1741401690800,0.93543,2138.7,2138.5,0.93549]
[1741401691001,0.93546,2138.6,2138.4,2.88731]
[1741401691398,0.93543,2138.7,2138.5,0.93548]
[1741401691597,0.93547,2138.6,2138.4,2.88732]
[1741401691796,0.93549,2138.5,2138.4,1.3092]
[1741401692002,5.3928,2138.8,2138.4,1.3092]
[1741401692003,0.93548,2138.6,2138.4,2.24471]
[1741401692504,0.93549,2138.5,2138.4,1.3092]
[1741401692698,1.55879,2138.5,2138.4,1.3092]
[1741401693605,0.9356,2138.3,2138.1,1.58195]
[1741401693907,0.93559,2138.3,2138.1,1.9943]
[1741401694301,0.6233,2138.5,2138.1,1.9543]
[1741401694504,0.93558,2138.3,2138.2,0.93562]
[1741401695208,0.93559,2138.3,2138.1,2.88994]
[1741401695609,0.93559,2138.3,2138.1,1.9543]
[1741401696304,3.8311,2138.5,2138.1,1.9543]
[1741401696508,0.93562,2138.2,2138.1,1.9543]
[1741401696810,0.93571,2138.0,2137.9,0.00702922]
[1741401698606,3.11971,2138.0,2137.9,0.00702922]
[1741401699411,4.11923878,2138.0,2137.9,0.00702922]
[1741401699611,3.11971,2138.0,2137.9,0.00702922]
[1741401708611,6.184,2138.0,2136.9,3.2078]
[1741401708814,3.2078,2137.6,2137.2,1.2276]
[1741401709114,1.57294,2137.5,2137.3,0.936]
[1741401709415,0.637,2137.5,2137.2,1.2276]
[1741401709615,1.57295,2137.5,2137.3,0.93601]
[1741401709816,0.637,2137.5,2137.2,1.2276]
[1741401710018,0.93598,2137.4,2137.2,2.21363]
[1741401710211,1.57295,2137.5,2137.3,0.936]
[1741401710411,0.936,2137.4,2137.2,1.2276]
[1741401710611,2.19102922,2137.6,2137.2,1.2776]
[1741401710814,0.93595,2137.5,2137.2,1.2776]
[1741401711113,2.19102922,2137.6,2137.4,0.93597]
[1741401711312,2.19102922,2137.6,2137.5,0.6417]
[1741401711526,3.12691922,2137.6,2137.5,0.6417]
[1741401712422,2.19102922,2137.6,2137.5,0.6417]
[1741401713412,3.12691922,2137.6,2137.5,0.6417]
[1741401714023,2.19102922,2137.6,2137.5,0.6417]
[1741401714518,3.12691922,2137.6,2137.5,0.6417]
[1741401715115,2.19102922,2137.6,2137.5,0.6417]
[1741401715316,2.19102922,2137.6,2137.5,1.57763]
[1741401716921,3.12691922,2137.6,2137.5,0.6417]
[1741401717122,2.19102922,2137.6,2137.5,1.57763]
[1741401719316,3.12691922,2137.6,2137.5,0.6417]
[1741401720222,2.19102922,2137.6,2137.5,1.57763]
[1741401720524,2.19102922,2137.6,2137.5,0.6417]
[1741401720725,3.12691922,2137.6,2137.5,0.6417]
[1741401721622,2.19102922,2137.6,2137.5,0.6417]
[1741401721827,2.19102922,2137.6,2137.5,1.57763]
[1741401725035,0.00702922,2137.6,2137.5,1.57763]
[1741401726537,0.00702922,2137.6,2137.5,0.6417]
[1741401727248,0.94291922,2137.6,2137.5,0.6417]
[1741401727538,0.00702922,2137.6,2137.5,1.57763]
[1741401729734,0.00702922,2137.6,2137.5,0.6417]
[1741401729934,0.94291922,2137.6,2137.5,0.6417]
[1741401730135,0.00702922,2137.6,2137.5,0.6417]
[1741401730334,0.00702922,2137.6,2137.5,1.57763]
[1741401731736,0.93602,2137.3,2137.2,1.2276]
[1741401731934,0.93602,2137.3,2137.2,0.1]
[1741401732138,0.93606,2137.2,2137.1,0.00702922]
[1741401732434,1.56056,2137.2,2137.1,0.00702922]
[1741401739142,3.2078,2137.3,2137.1,0.00702922]
[1741401739342,5.3908,2137.3,2137.2,0.93606]